bitfinex-derivatives/quotes_BTCF0:USTF0_20241122
["timestamp","ask_amount","ask_price","bid_price","bid_amount"]
[1732287399932,0.051364,97281.0,97271.0,0.051369]
[1732287400124,0.05137,97268.0,97264.0,0.7508]
[1732287400325,0.051372,97266.0,97264.0,0.7508]
[1732287400633,0.00012,97265.0,97264.0,0.7508]
[1732287400829,0.00012,97265.0,97264.0,1.0508]
[1732287401037,0.05160278,97302.0,97264.0,1.05924]
[1732287401332,0.08162832,97269.0,97264.0,0.69948584]
[1732287401533,0.051372,97266.0,97264.0,0.69948584]
[1732287401832,0.08162832,97265.0,97264.0,0.69948584]
[1732287402427,0.08162832,97265.0,97264.0,0.39]
[1732287403230,0.051373,97264.0,97240.0,0.3608]
[1732287403430,0.08162832,97245.0,97240.0,0.3808]
[1732287403736,0.3608,97258.0,97240.0,0.3808]
[1732287403737,4e-05,97241.0,97240.0,0.3808]
[1732287404236,4e-05,97241.0,97240.0,0.68932]
[1732287404534,0.051374,97261.0,97240.0,0.99880584]
[1732287404736,0.08162832,97251.0,97240.0,0.32948584]
[1732287404939,0.051382,97246.0,97240.0,0.32948584]
[1732287405234,0.08162832,97251.0,97240.0,0.32948584]
[1732287405435,0.08162832,97241.0,97240.0,0.02]
[1732287406135,0.3608,97252.0,97240.0,0.02]
[1732287406342,0.051382,97247.0,97242.0,0.3608]
[1732287406539,0.051383,97244.0,97242.0,0.3608]
[1732287406743,0.3608,97252.0,97247.0,0.051381]
[1732287406947,0.412179,97252.0,97242.0,0.3608]
[1732287407133,0.412179,97252.0,97251.0,4e-05]
[1732287407343,0.412179,97252.0,97251.0,0.39004]
[1732287407635,0.49380732,97252.0,97251.0,0.33872584]
[1732287408029,0.44242832,97252.0,97251.0,0.33872584]
[1732287408232,0.49380732,97252.0,97251.0,0.33872584]
[1732287408642,0.44242832,97252.0,97251.0,0.33872584]
[1732287410037,0.49380732,97252.0,97251.0,0.33872584]
[1732287410437,0.49380732,97252.0,97251.0,0.28741168]
[1732287410635,0.49380732,97252.0,97230.0,0.00154234]
[1732287410636,0.051387,97237.0,97230.0,0.00154234]
[1732287410844,0.051387,97237.0,97231.0,0.05139]
[1732287411141,0.08162832,97237.0,97234.0,0.051388]
[1732287411338,0.08162832,97237.0,97230.0,0.39154234]
[1732287411339,0.13301832,97231.0,97230.0,0.39154234]
[1732287411529,0.08162832,97231.0,97230.0,0.39154234]
[1732287411941,0.08162832,97231.0,97230.0,0.44293334]
[1732287412135,0.13956,97248.0,97230.0,0.70010234]
[1732287412329,0.3608,97245.0,97230.0,0.39154234]
[1732287412530,0.3608,97245.0,97230.0,0.44293234]
[1732287412531,0.08162832,97235.0,97230.0,0.44293234]
[1732287412734,0.08162832,97235.0,97230.0,0.39154234]
[1732287412939,0.08162832,97231.0,97230.0,0.39154234]
[1732287413148,0.13301832,97231.0,97230.0,0.39154234]
[1732287413341,0.08162832,97231.0,97230.0,0.39154234]
[1732287413646,0.051389,97233.0,97230.0,0.70102818]
[1732287413842,0.13301732,97233.0,97230.0,0.70102818]
[1732287414044,0.13301732,97233.0,97230.0,0.75241818]
[1732287414736,0.3608,97245.0,97233.0,0.051389]
[1732287414932,0.3608,97245.0,97230.0,0.70162818]
[1732287414933,0.05139,97231.0,97230.0,0.70162818]
[1732287415136,0.13301832,97231.0,97230.0,0.75241918]
[1732287415342,0.13305832,97231.0,97230.0,0.34022818]
[1732287415842,0.49385832,97231.0,97230.0,0.34022818]
[1732287416641,0.49385832,97231.0,97230.0,0.10161403]
[1732287416840,0.49385832,97231.0,97209.0,0.3608]
[1732287417042,0.13302932,97210.0,97209.0,0.5308]
[1732287417344,0.49386932,97210.0,97209.0,0.17]
[1732287418135,0.44246832,97210.0,97200.0,0.1]
[1732287418337,0.44246832,97210.0,97200.0,0.49]
[1732287418338,0.08162832,97201.0,97200.0,0.49]
[1732287418647,0.08166832,97201.0,97200.0,0.49]
[1732287419245,0.08166832,97201.0,97200.0,0.1]
[1732287419450,0.08166832,97201.0,97138.0,0.056939]
[1732287419451,0.13207388,97201.0,97151.0,0.3608]
[1732287419645,0.13207388,97201.0,97167.0,0.39131658]
[1732287419646,0.08162832,97173.0,97167.0,0.39131658]
[1732287419945,4e-05,97168.0,97167.0,0.39131658]
[1732287420449,0.41306539,97195.0,97167.0,1.00007658]
[1732287420640,0.08162832,97186.0,97181.0,0.3608]
[1732287420843,0.08162832,97186.0,97181.0,0.7508]
[1732287421046,0.08162832,97186.0,97184.0,0.051415]
[1732287421250,0.08162832,97185.0,97184.0,0.051415]
[1732287421443,0.08162832,97185.0,97181.0,0.75148]
[1732287421749,1.02060001,97242.0,97181.0,0.75148]
[1732287421750,0.13308432,97182.0,97181.0,0.39]
[1732287422651,0.13308432,97182.0,97181.0,0.33868584]
[1732287422843,0.08166832,97182.0,97181.0,0.33868584]
[1732287423654,0.051417,97181.0,97167.0,0.00131658]
[1732287423946,0.08166832,97168.0,97167.0,0.39131658]
[1732287424750,4e-05,97168.0,97167.0,0.39131658]
[1732287425052,0.08166832,97168.0,97167.0,0.39131658]
[1732287425648,4e-05,97168.0,97167.0,0.38456626]
[1732287425844,0.3608,97195.0,97193.0,0.05141]
[1732287426047,0.3608,97195.0,97193.0,0.39]
[1732287426239,0.13303832,97194.0,97193.0,0.39]
[1732287426440,0.08162832,97194.0,97193.0,0.39]
[1732287427149,0.3608,97205.0,97193.0,0.39]
[1732287427450,0.08162832,97198.0,97196.0,0.051409]
[1732287427841,0.051402,97209.0,97200.0,0.051406]
[1732287428039,0.08162832,97198.0,97195.0,0.3608]
[1732287428442,0.3608,97201.0,97167.0,0.3608]
[1732287428645,0.08162832,97175.0,97167.0,0.3608]
[1732287428950,0.08162832,97178.0,97171.0,0.051422]
[1732287429349,0.051416,97182.0,97177.0,8e-05]
[1732287429548,0.50036,97214.0,97177.0,0.75088]
[1732287429755,0.08162832,97198.0,97190.0,0.3608]
[1732287430054,0.3608,97214.0,97190.0,0.3608]
[1732287430055,0.08162832,97201.0,97192.0,0.3608]
[1732287430356,0.0024,97225.0,97192.0,0.3608]
[1732287430357,0.0024,97225.0,97200.0,0.3608]
[1732287430657,0.053793,97225.0,97224.0,8e-05]
[1732287430856,0.051393,97225.0,97224.0,0.39008]
[1732287431358,0.13302132,97225.0,97224.0,0.39008]
[1732287432067,0.051408,97197.0,97191.0,0.0349]
[1732287432356,0.08162832,97196.0,97194.0,0.051409]
[1732287432746,0.08162832,97195.0,97191.0,0.4255]
[1732287432959,0.08162832,97195.0,97193.0,0.05141]
[1732287433145,0.08162832,97192.0,97191.0,0.3906]
[1732287433350,0.08162832,97192.0,97191.0,0.39]
[1732287433551,0.3608,97212.0,97191.0,0.39]
[1732287433856,0.08162832,97194.0,97193.0,0.05141]
[1732287434050,0.08162832,97194.0,97191.0,0.39]
[1732287434453,0.051411,97192.0,97191.0,0.39]
[1732287434659,0.08162832,97194.0,97191.0,0.39]
[1732287434959,0.49383932,97192.0,97191.0,0.39]
[1732287435346,0.13303932,97192.0,97191.0,0.39]
[1732287435550,0.08162832,97192.0,97191.0,0.39]
[1732287436658,0.08162832,97192.0,97173.0,0.05142]
[1732287436659,0.44242832,97192.0,97155.0,0.3608]
[1732287436955,4e-05,97164.0,97163.0,0.75234353]
[1732287438564,0.3608,97192.0,97163.0,1.06110353]
[1732287438752,0.08162832,97176.0,97174.0,0.3608]
[1732287438956,0.08162832,97176.0,97174.0,0.7508]
[1732287439463,0.08162832,97175.0,97174.0,0.39]
[1732287440958,0.08162832,97175.0,97174.0,0.319842]
[1732287441161,0.08162832,97175.0,97135.0,0.3608]
[1732287441162,0.051434,97149.0,97136.0,0.05144]
[1732287441361,0.36132001,97176.0,97136.0,0.05144]
[1732287441362,0.3608,97155.0,97136.0,0.39]
[1732287441659,0.08162832,97151.0,97138.0,0.051439]
[1732287441859,0.051436,97145.0,97137.0,0.0383]
[1732287442252,0.3608,97164.0,97143.0,0.3608]
[1732287442453,0.3608,97164.0,97153.0,0.3608]
[1732287442454,0.13305932,97155.0,97153.0,0.3608]
[1732287442656,0.08162832,97154.0,97153.0,0.7508]
[1732287442859,0.08162832,97154.0,97153.0,0.39]
[1732287445961,0.08162832,97154.0,97134.0,0.051441]
[1732287446172,0.3608,97155.0,97142.0,0.39]
[1732287446173,0.051434,97148.0,97142.0,0.39]
[1732287446358,0.3608,97155.0,97142.0,0.39]
[1732287446560,0.08162832,97143.0,97142.0,0.39]
[1732287446762,0.08162832,97148.0,97142.0,0.39]
[1732287446964,0.3608,97164.0,97142.0,0.39]
[1732287446965,0.0028,97178.0,97147.0,0.3608]
[1732287447164,0.02392832,97156.0,97147.0,0.3608]
[1732287447362,0.02392832,97155.0,97147.0,0.412234]
[1732287447666,0.02392832,97155.0,97149.0,0.051433]
[1732287447864,0.3608,97165.0,97149.0,0.051433]
[1732287447865,0.3608,97165.0,97163.0,0.051425]
[1732287448075,0.3608,97165.0,97163.0,0.39]
[1732287448365,0.3608,97165.0,97164.0,4e-05]
[1732287449163,0.41138089,97174.0,97164.0,4e-05]
[1732287449362,0.3608,97174.0,97165.0,0.30876]
[1732287449557,0.3608,97174.0,97173.0,4e-05]
[1732287449864,0.05141,97195.0,97177.0,0.051418]
[1732287450063,0.051415,97185.0,97179.0,0.051417]
[1732287450371,0.05142,97174.0,97136.0,0.3608]
[1732287450564,0.05142,97174.0,97150.0,0.051433]
[1732287450565,0.051429,97159.0,97150.0,0.051433]
[1732287450772,0.3608,97162.0,97150.0,0.051433]
[1732287450773,0.051427,97161.0,97150.0,0.351433]
[1732287450968,0.051429,97159.0,97150.0,0.351433]
[1732287451469,0.13944,97175.0,97156.0,0.3608]
[1732287451663,0.051423,97168.0,97158.0,0.051428]
[1732287451865,0.13944,97175.0,97156.0,0.3608]
[1732287452164,0.13944,97175.0,97091.0,0.00511231]
[1732287452165,0.05143,97156.0,97136.0,0.3608]
[1732287452382,4e-05,97157.0,97136.0,0.7208]
[1732287452383,0.051436,97145.0,97136.0,0.7208]
[1732287453064,4e-05,97157.0,97136.0,0.7208]
[1732287453065,4e-05,97137.0,97136.0,0.7208]
[1732287454466,0.05148,97137.0,97136.0,0.7208]
[1732287455166,4e-05,97137.0,97136.0,0.7208]
[1732287455372,4e-05,97137.0,97136.0,0.77224]
[1732287455768,4e-05,97137.0,97136.0,1.08108]
[1732287456274,4e-05,97137.0,97136.0,0.77224]
[1732287457166,0.05148,97137.0,97136.0,0.77224]
[1732287457781,0.05148,97137.0,97136.0,0.772235]
[1732287458169,4e-05,97137.0,97136.0,0.772235]
[1732287458866,4e-05,97137.0,97136.0,1.081075]
[1732287459667,4e-05,97137.0,97136.0,1.381075]
[1732287459967,0.3608,97157.0,97136.0,1.381075]
[1732287460167,0.051428,97150.0,97149.0,0.3608]
[1732287460366,0.051424,97157.0,97156.0,8e-05]
[1732287460772,0.412224,97157.0,97156.0,8e-05]
[1732287460972,0.10284632,97157.0,97156.0,8e-05]
[1732287463169,0.41164632,97157.0,97156.0,8e-05]
[1732287463372,0.10284632,97157.0,97156.0,8e-05]
[1732287465975,0.051436,97134.0,97133.0,0.3608]
[1732287466277,0.051476,97134.0,97133.0,0.7508]
[1732287466476,0.051476,97134.0,97133.0,0.39]
[1732287467180,0.051476,97134.0,97133.0,0.441437]
[1732287467181,4e-05,97134.0,97133.0,0.441437]
[1732287467679,4e-05,97134.0,97133.0,0.750277]
[1732287468076,4e-05,97134.0,97133.0,0.441437]
[1732287468273,4e-05,97134.0,97133.0,0.750277]
[1732287468581,4e-05,97134.0,97133.0,0.39]
[1732287468885,0.051476,97134.0,97133.0,0.39]
[1732287469579,4e-05,97134.0,97133.0,0.441437]
[1732287469778,0.051476,97134.0,97133.0,0.39]
[1732287470575,4e-05,97134.0,97133.0,0.39]
[1732287470776,4e-05,97134.0,97133.0,0.441437]
[1732287471077,0.0096,97168.0,97133.0,1.35964]
[1732287471378,0.10314098,97165.0,97164.0,4e-05]
[1732287471574,0.05142,97165.0,97164.0,0.39004]
[1732287472377,0.051417,97170.0,97165.0,0.051419]
[1732287472578,0.051419,97166.0,97165.0,0.051419]
[1732287472983,0.05142,97165.0,97164.0,0.39]
[1732287473475,0.05146,97165.0,97164.0,0.39]
[1732287473778,0.05146,97165.0,97164.0,0.44142]
[1732287473975,4e-05,97165.0,97164.0,0.44142]
[1732287474182,4e-05,97165.0,97164.0,0.80222]
[1732287474373,0.3608,97186.0,97164.0,0.80222]
[1732287474374,0.3608,97186.0,97164.0,1.41098]
[1732287474579,0.051411,97181.0,97180.0,0.051411]
[1732287474792,0.051411,97181.0,97180.0,0.39]
[1732287475278,0.051411,97181.0,97148.0,0.412229]
[1732287475279,0.05141,97184.0,97160.0,0.051422]
[1732287475474,0.05142,97165.0,97164.0,0.39]
[1732287475879,0.3608,97170.0,97164.0,0.39]
[1732287476081,0.3608,97170.0,97169.0,0.051418]
[1732287476690,0.051416,97173.0,97169.0,0.051418]
[1732287476992,0.051416,97172.0,97169.0,0.051417]
[1732287477490,0.051413,97179.0,97164.0,0.7508]
[1732287477688,0.051413,97179.0,97178.0,0.051413]
[1732287477987,0.051413,97179.0,97178.0,0.441413]
[1732287478485,0.36132001,97185.0,97183.0,0.05141]
[1732287478679,0.36132001,97185.0,97178.0,0.39]
[1732287478680,0.051407,97190.0,97179.0,0.30872]
[1732287478988,0.93844,97197.0,97186.0,0.051409]
[1732287478989,0.051408,97187.0,97186.0,0.051409]
[1732287479185,0.93896001,97197.0,97184.0,8e-05]
[1732287479186,0.051406,97192.0,97191.0,0.051405]
[1732287479488,0.93844,97197.0,97196.0,0.051403]
[1732287479986,0.05258198,97211.0,97209.0,0.051396]
[1732287480284,0.051392,97218.0,97215.0,0.051393]
[1732287480482,0.05139,97223.0,97210.0,8e-05]
[1732287480687,0.05139,97223.0,97217.0,8e-05]
[1732287480878,0.3608,97233.0,97222.0,0.36088]
[1732287481080,0.3608,97233.0,97231.0,0.051384]
[1732287481280,0.0024,97259.0,97230.0,0.3608]
[1732287481281,0.3608,97248.0,97230.0,0.3608]
[1732287481482,0.00052001,97240.0,97239.0,0.051381]
[1732287481683,0.051377,97247.0,97241.0,0.051379]
[1732287481884,0.051373,97254.0,97250.0,0.051375]
[1732287482079,0.3608,97257.0,97250.0,0.39]
[1732287482279,0.051382,97237.0,97226.0,0.051387]
[1732287482484,0.051377,97247.0,97238.0,0.051381]
[1732287482687,0.3608,97258.0,97238.0,0.39]
[1732287482688,0.3608,97250.0,97238.0,0.39]
[1732287483081,0.051378,97244.0,97238.0,0.39]
[1732287483291,0.3608,97258.0,97238.0,0.39]
[1732287483292,0.051374,97251.0,97245.0,0.051377]
[1732287483488,0.05137,97260.0,97255.0,0.051372]
[1732287483683,0.051366,97267.0,97255.0,0.39]
[1732287483891,0.051366,97267.0,97259.0,8e-05]
[1732287484088,0.3608,97269.0,97266.0,8e-05]
[1732287484291,0.3608,97269.0,97266.0,0.051446]
[1732287484490,0.3608,97269.0,97268.0,8e-05]
[1732287484797,0.412165,97269.0,97268.0,8e-05]
[1732287485089,0.051365,97269.0,97268.0,8e-05]
[1732287485296,0.3608,97276.0,97268.0,8e-05]
[1732287485691,0.051374,97251.0,97250.0,0.3608]
[1732287485893,0.051374,97251.0,97250.0,0.34]
[1732287486095,0.051454,97251.0,97250.0,0.34]
[1732287486296,8e-05,97251.0,97250.0,0.34]
[1732287486489,8e-05,97251.0,97250.0,0.64848]
[1732287486799,0.3608,97293.0,97280.0,0.051359]
[1732287487006,0.1,97300.0,97280.0,0.39]
[1732287487185,0.00060001,97293.0,97292.0,0.051353]
[1732287487498,0.00060001,97293.0,97292.0,0.441353]
[1732287487694,0.3608,97299.0,97292.0,0.39]
[1732287487999,0.3608,97299.0,97280.0,0.0006]
[1732287488000,0.051358,97281.0,97280.0,0.0006]
[1732287488403,0.051358,97281.0,97272.0,0.3608]
[1732287488404,0.051361,97278.0,97272.0,0.3608]
[1732287488693,4e-05,97273.0,97272.0,0.3608]
[1732287489085,4e-05,97273.0,97272.0,0.720563]
[1732287489292,4e-05,97273.0,97272.0,1.110563]
[1732287489491,0.051351,97295.0,97283.0,0.051357]
[1732287489692,0.051351,97295.0,97289.0,0.3608]
[1732287489913,0.1522149,97300.0,97289.0,0.3608]
[1732287489914,0.1522149,97300.0,97295.0,0.051351]
[1732287490093,0.1522149,97300.0,97295.0,0.39]
[1732287490294,0.1,97300.0,97299.0,4e-05]
[1732287492093,0.1,97300.0,97273.0,0.0377]
[1732287492094,0.051365,97268.0,97267.0,0.3608]
[1732287492295,0.051365,97268.0,97267.0,0.7508]
[1732287492604,0.13908,97284.0,97267.0,0.7508]
[1732287492802,4e-05,97268.0,97267.0,0.7508]
[1732287493098,4e-05,97268.0,97267.0,0.802166]
[1732287493295,4e-05,97268.0,97267.0,0.7508]
[1732287495592,0.051405,97268.0,97267.0,0.7508]
[1732287495798,0.051405,97268.0,97267.0,0.3608]
[1732287496000,0.359845,97268.0,97267.0,0.3608]
[1732287496202,0.051405,97268.0,97267.0,0.3608]
[1732287496704,0.10337792,97268.0,97267.0,0.3608]
[1732287497298,0.41181792,97268.0,97243.0,0.051378]
[1732287497496,0.051374,97252.0,97250.0,0.39]
[1732287497699,0.051374,97252.0,97221.0,0.3608]
[1732287497700,0.051382,97237.0,97229.0,0.3608]
[1732287497902,0.051382,97237.0,97221.0,0.3608]
[1732287497903,0.051382,97237.0,97223.0,0.4309]
[1732287498203,0.05197292,97268.0,97223.0,0.4309]
[1732287498204,0.0024,97262.0,97255.0,0.051372]
[1732287498400,0.0055,97281.0,97255.0,0.051372]
[1732287498401,0.051367,97265.0,97259.0,0.3608]
[1732287498597,0.3608,97275.0,97255.0,0.39]
[1732287498598,0.05137,97260.0,97255.0,0.39]
[1732287498905,4e-05,97256.0,97255.0,0.39]
[1732287501005,4e-05,97256.0,97248.0,0.3608]
[1732287501205,0.051373,97254.0,97248.0,0.7508]
[1732287501506,4e-05,97249.0,97248.0,0.7508]
[1732287501804,4e-05,97249.0,97248.0,0.802176]
[1732287501997,4e-05,97256.0,97255.0,0.051372]
[1732287502193,4e-05,97256.0,97252.0,0.13908]
[1732287502396,4e-05,97256.0,97248.0,0.7514]
[1732287502397,4e-05,97256.0,97255.0,4e-05]
[1732287503100,0.051359,97280.0,97271.0,0.051363]
[1732287503302,0.49988,97290.0,97271.0,0.441363]
[1732287503508,0.051359,97280.0,97279.0,8e-05]
[1732287503696,0.051368,97263.0,97254.0,0.051373]
[1732287503898,0.051365,97270.0,97254.0,0.39]
[1732287504098,4e-05,97255.0,97254.0,0.441373]
[1732287504300,0.3608,97282.0,97254.0,1.05928]
[1732287504502,0.051361,97276.0,97273.0,0.3608]
[1732287504706,0.051361,97276.0,97273.0,0.7508]
[1732287505000,0.051358,97282.0,97273.0,0.39]
[1732287505201,0.051355,97288.0,97273.0,0.39]
[1732287505405,0.051356,97286.0,97279.0,0.051359]
[1732287505605,0.051357,97284.0,97273.0,0.441362]
[1732287505800,0.3608,97291.0,97273.0,0.441362]
[1732287505801,0.051357,97285.0,97273.0,0.39]
[1732287506004,0.3608,97291.0,97273.0,0.39]
[1732287506194,4e-05,97274.0,97273.0,0.7508]
[1732287506395,4e-05,97274.0,97273.0,0.802163]
[1732287506799,4e-05,97274.0,97273.0,0.7508]
[1732287508305,4e-05,97274.0,97273.0,1.3592]
[1732287508509,0.0024,97305.0,97274.0,0.051362]
[1732287508805,0.051352,97293.0,97292.0,0.412153]
[1732287509103,0.051349,97299.0,97298.0,0.051349]
[1732287509511,0.05099477,97303.0,97292.0,0.7514]
[1732287509512,0.05099477,97303.0,97292.0,0.802752]
[1732287509709,0.051352,97293.0,97292.0,0.7508]
[1732287510009,4e-05,97293.0,97292.0,0.7508]
[1732287510403,4e-05,97293.0,97292.0,0.802153]
[1732287511700,0.1,97300.0,97292.0,1.110513]
[1732287511895,0.1,97300.0,97292.0,0.7508]
[1732287512095,0.051352,97293.0,97292.0,0.7508]
[1732287513101,0.051349,97299.0,97292.0,0.7508]
[1732287513404,0.1,97300.0,97298.0,0.00019999]
[1732287513594,0.051349,97299.0,97298.0,0.00019999]
[1732287513795,0.1,97300.0,97292.0,0.39]
[1732287513796,0.051352,97293.0,97292.0,0.39]
[1732287514201,0.051392,97293.0,97292.0,0.39]
[1732287514803,0.412192,97293.0,97292.0,0.39]
[1732287515301,0.50150015,97293.0,97292.0,0.39]
[1732287515508,0.720552,97293.0,97292.0,0.39]
[1732287515804,0.50150015,97293.0,97292.0,0.39]
[1732287516201,0.412192,97293.0,97292.0,0.39]
[1732287516398,0.50150015,97293.0,97292.0,0.39]
[1732287516703,0.412192,97293.0,97292.0,0.39]
[1732287517502,0.50150015,97293.0,97292.0,0.39]
[1732287518003,0.36084,97293.0,97292.0,0.441353]
[1732287518205,4e-05,97293.0,97292.0,0.441353]
[1732287518608,4e-05,97293.0,97292.0,0.39]
[1732287518905,0.6692,97293.0,97280.0,0.3608]
[1732287519112,0.051358,97281.0,97280.0,0.7508]
[1732287519903,0.051398,97281.0,97280.0,0.7508]
[1732287520299,4e-05,97281.0,97280.0,0.7508]
[1732287520512,4e-05,97281.0,97280.0,0.802159]
[1732287520700,0.051398,97281.0,97280.0,0.7508]
[1732287520900,0.051363,97272.0,97260.0,0.051369]
[1732287521103,0.051363,97272.0,97271.0,0.7508]
[1732287521298,0.051403,97272.0,97271.0,0.7508]
[1732287521504,0.051403,97272.0,97271.0,0.39]
[1732287521704,0.051366,97266.0,97265.0,0.00154197]
[1732287522009,0.051406,97266.0,97265.0,0.00154197]
[1732287522199,0.051406,97266.0,97265.0,0.24154197]
[1732287523112,0.05144668,97266.0,97265.0,0.24154197]
[1732287523305,0.051406,97266.0,97265.0,0.24154197]
[1732287523505,4e-05,97266.0,97265.0,0.24154197]
[1732287523700,4e-05,97266.0,97265.0,0.29290897]
[1732287526114,0.4608,97300.0,97284.0,0.051357]
[1732287526311,0.05220616,97297.0,97287.0,0.051355]
[1732287526513,0.05220616,97297.0,97284.0,0.39]
[1732287526514,0.051353,97292.0,97284.0,0.39]
[1732287526710,0.051353,97292.0,97288.0,0.051354]
[1732287526906,0.09045785,97294.0,97288.0,0.051354]
[1732287527109,0.051353,97291.0,97288.0,0.051354]
[1732287527302,0.09045785,97298.0,97284.0,0.39]
[1732287527515,0.051355,97288.0,97284.0,0.39]
[1732287527710,0.051355,97288.0,97285.0,0.051356]
[1732287527910,0.051355,97288.0,97284.0,0.39]
[1732287528113,0.15218561,97300.0,97287.0,0.3608]
[1732287528418,0.1,97300.0,97299.0,0.412389]
[1732287528613,0.1,97300.0,97299.0,0.941389]
[1732287529917,0.05251428,97323.0,97315.0,0.051341]
[1732287530117,0.05251428,97323.0,97315.0,0.802141]
[1732287530311,0.3608,97333.0,97315.0,0.802141]
[1732287530905,0.3608,97333.0,97315.0,0.802381]
[1732287531211,0.051336,97324.0,97315.0,0.802381]
[1732287531609,0.3476,97347.0,97315.0,0.802381]
[1732287531610,0.051333,97330.0,97329.0,0.051333]
[1732287531810,0.051333,97330.0,97329.0,0.441333]
[1732287532012,0.051333,97330.0,97329.0,0.00024]
[1732287532606,0.051346,97305.0,97304.0,0.3608]
[1732287532807,0.051346,97305.0,97304.0,0.7508]
[1732287534206,0.051346,97305.0,97304.0,0.3608]
[1732287534611,0.051346,97305.0,97304.0,0.6008]
[1732287534612,0.1026383,97305.0,97304.0,0.6008]
[1732287537012,0.0512923,97305.0,97304.0,0.6008]
[1732287537213,0.0405,97317.0,97304.0,0.6008]
[1732287537520,0.051346,97305.0,97304.0,0.6008]
[1732287538223,0.05067636,97305.0,97304.0,0.652146]
[1732287538421,0.051344,97308.0,97304.0,0.652146]
[1732287538816,0.051346,97305.0,97304.0,0.6008]
[1732287539324,0.051346,97305.0,97304.0,0.3608]
[1732287540014,0.09066053,97317.0,97304.0,0.412146]
[1732287540217,0.09066053,97317.0,97304.0,0.7508]
[1732287540415,0.09066053,97317.0,97316.0,4e-05]
[1732287540416,0.05016053,97317.0,97316.0,4e-05]
[1732287540720,0.13888,97330.0,97321.0,0.051337]
[1732287540919,0.13888,97330.0,97316.0,0.39004]
[1732287541117,0.13888,97330.0,97329.0,4e-05]
[1732287541118,0.190212,97330.0,97329.0,4e-05]
[1732287541514,0.190212,97330.0,97304.0,0.3608]
[1732287541515,0.798452,97330.0,97304.0,0.3608]
[1732287541721,0.190212,97330.0,97312.0,0.412142]
[1732287542017,0.05134,97316.0,97312.0,0.412142]
[1732287542225,0.051335,97325.0,97319.0,0.051338]
[1732287542426,0.05050965,97330.0,97312.0,0.3608]
[1732287542615,0.3608,97332.0,97312.0,0.3608]
[1732287542616,0.051335,97326.0,97324.0,4e-05]
[1732287542813,0.051335,97326.0,97324.0,0.39004]
[1732287543016,0.359575,97325.0,97324.0,4e-05]
[1732287543216,0.41126858,97332.0,97290.0,0.20337308]
[1732287543416,0.41126858,97332.0,97314.0,0.05134]
[1732287543712,0.60147958,97332.0,97331.0,4e-05]
[1732287544121,0.90971958,97332.0,97331.0,4e-05]
[1732287545122,0.41126858,97332.0,97331.0,0.251372]
[1732287546123,0.46259958,97332.0,97331.0,0.20004]
[1732287547324,0.05134,97315.0,97309.0,0.051343]
[1732287547518,0.05134,97315.0,97309.0,0.241343]
[1732287547719,0.00012,97310.0,97309.0,0.241343]
[1732287548425,0.051463,97310.0,97309.0,0.19]
[1732287549423,0.051463,97310.0,97275.0,0.051361]
[1732287549424,0.051356,97286.0,97275.0,0.051361]
[1732287549613,0.051356,97286.0,97269.0,0.3608]
[1732287549614,0.051356,97286.0,97285.0,0.5608]
[1732287549813,0.051476,97286.0,97285.0,0.5608]
[1732287551727,0.720636,97286.0,97285.0,0.2]
[1732287551928,0.051364,97270.0,97269.0,0.3608]
[1732287552127,0.051364,97270.0,97269.0,0.07]
[1732287552327,0.051484,97270.0,97256.0,0.3608]
[1732287552536,0.20350408,97270.0,97256.0,0.39]
[1732287552825,0.051379,97242.0,97241.0,0.36148]
[1732287553026,0.051379,97242.0,97241.0,0.6808]
[1732287553233,0.051499,97242.0,97241.0,0.3608]
[1732287553727,0.00012,97242.0,97241.0,0.3608]
[1732287554320,0.00012,97242.0,97241.0,0.7508]
[1732287555127,0.00012,97242.0,97241.0,0.39]
[1732287555331,0.00012,97242.0,97226.0,0.3608]
[1732287555523,0.051382,97236.0,97228.0,0.051386]
[1732287556131,0.051382,97236.0,97226.0,0.3608]
[1732287556426,0.051377,97246.0,97234.0,0.3608]
[1732287556632,0.51282008,97250.0,97234.0,0.3608]
[1732287556822,0.051377,97246.0,97245.0,4e-05]
[1732287557328,0.051377,97246.0,97211.0,0.01706]
[1732287557329,0.051395,97212.0,97211.0,0.01706]
[1732287557523,0.051393,97217.0,97211.0,0.01706]
[1732287557830,0.00016001,97212.0,97211.0,0.01706]
[1732287562333,0.00016001,97212.0,97211.0,0.02706]
[1732287562635,0.00016001,97212.0,97211.0,0.01706]
[1732287562831,0.13912001,97212.0,97211.0,0.01706]
[1732287564233,0.00016001,97212.0,97211.0,0.01706]
[1732287564539,0.00016001,97212.0,97211.0,0.09706]
[1732287566634,0.05155501,97212.0,97211.0,0.09706]
[1732287566830,0.00016001,97212.0,97211.0,0.09706]
[1732287567032,0.00016001,97212.0,97211.0,0.148455]
[1732287567534,0.13896,97243.0,97211.0,0.40566]
[1732287567735,0.13896,97243.0,97237.0,0.3608]
[1732287567939,0.051381,97239.0,97237.0,0.7508]
[1732287568236,0.13896,97249.0,97237.0,0.7508]
[1732287568237,0.051377,97246.0,97239.0,0.05138]
[1732287568433,0.41236561,97253.0,97237.0,0.7514]
[1732287568628,0.051379,97241.0,97237.0,0.7508]
[1732287568829,4e-05,97238.0,97237.0,0.7508]
[1732287569035,0.051421,97238.0,97237.0,0.7508]
[1732287569432,4e-05,97238.0,97237.0,0.7508]
[1732287569943,4e-05,97238.0,97237.0,0.802181]
[1732287570439,4e-05,97238.0,97237.0,0.7508]
[1732287570839,4e-05,97238.0,97237.0,0.802181]
[1732287571434,0.051421,97238.0,97237.0,0.7508]
[1732287572239,4e-05,97238.0,97237.0,0.7508]